[Event "Late-Titled-Tuesday-Blitz-May-14-2024"]
[Site "Chess.com"]
[Date "2024.05.14"]
[Round "6"]
[White "Cipy77"]
[Black "temus_galaktionov"]
[Result "0-1"]
[WhiteElo "2649"]
[BlackElo "2860"]
[TimeControl "180+1"]
[EndTime "15:03:58 PDT"]
[Termination "temus_galaktionov won by resignation"]

1. c4 {[%clk 0:03:00.9]} 1... c6 {[%clk 0:03:00.9]} 2. Nf3 {[%clk 0:02:54.9]}
2... g6 {[%clk 0:03:01.8]} 3. g3 {[%clk 0:02:55]} 3... Bg7 {[%clk 0:03:02.5]} 4.
Bg2 {[%clk 0:02:55.6]} 4... Nf6 {[%clk 0:03:03.4]} 5. O-O {[%clk 0:02:56.1]}
5... O-O {[%clk 0:03:04.3]} 6. d4 {[%clk 0:02:54]} 6... d6 {[%clk 0:03:04.7]} 7.
Nc3 {[%clk 0:02:53.7]} 7... Nbd7 {[%clk 0:03:05.4]} 8. Re1 {[%clk 0:02:53.3]}
8... e5 {[%clk 0:03:06]} 9. e4 {[%clk 0:02:53.9]} 9... a5 {[%clk 0:03:05.9]} 10.
b3 {[%clk 0:02:52.7]} 10... Re8 {[%clk 0:03:05.9]} 11. h3 {[%clk 0:02:51.9]}
11... exd4 {[%clk 0:03:06]} 12. Nxd4 {[%clk 0:02:52.8]} 12... Nc5 {[%clk
0:03:06.4]} 13. Bf4 {[%clk 0:02:53.2]} 13... Nh5 {[%clk 0:03:06.1]} 14. Be3
{[%clk 0:02:52.9]} 14... Bd7 {[%clk 0:03:04.7]} 15. Qc2 {[%clk 0:02:50.4]} 15...
Qc7 {[%clk 0:03:04.6]} 16. Rad1 {[%clk 0:02:50.9]} 16... Re7 {[%clk 0:03:04.1]}
17. Nde2 {[%clk 0:02:36.5]} 17... Rae8 {[%clk 0:03:01.6]} 18. Bxc5 {[%clk
0:02:30.4]} 18... dxc5 {[%clk 0:03:02.5]} 19. g4 {[%clk 0:02:29.4]} 19... Nf4
{[%clk 0:03:01.1]} 20. Qd2 {[%clk 0:02:20.5]} 20... Be5 {[%clk 0:02:57.1]} 21.
Nxf4 {[%clk 0:02:18.8]} 21... Bxf4 {[%clk 0:02:58]} 22. Qd3 {[%clk 0:02:16.8]}
22... g5 {[%clk 0:02:58]} 23. Ne2 {[%clk 0:02:16.7]} 23... Be5 {[%clk
0:02:57.6]} 24. Qe3 {[%clk 0:02:11.7]} 24... h6 {[%clk 0:02:53.3]} 25. Qxc5
{[%clk 0:02:10.7]} 25... Bc8 {[%clk 0:02:49.1]} 26. Qe3 {[%clk 0:02:05.6]} 26...
Rd8 {[%clk 0:02:48.7]} 27. Nd4 {[%clk 0:02:04.9]} 27... Red7 {[%clk 0:02:47.4]}
28. Nb5 {[%clk 0:01:36.8]} 28... cxb5 {[%clk 0:02:46.2]} 29. Rd5 {[%clk
0:01:36.5]} 29... bxc4 {[%clk 0:02:43.7]} 30. bxc4 {[%clk 0:01:34.5]} 30... Rxd5
{[%clk 0:02:34.9]} 31. exd5 {[%clk 0:01:33.4]} 31... Bf4 {[%clk 0:02:27]} 32.
Qd4 {[%clk 0:01:28.5]} 32... b6 {[%clk 0:02:27.2]} 33. Qf6 {[%clk 0:01:28.3]}
33... Qd6 {[%clk 0:02:27.1]} 34. Qd4 {[%clk 0:01:25.7]} 34... Bd7 {[%clk
0:02:24]} 35. Be4 {[%clk 0:01:18.4]} 35... Re8 {[%clk 0:02:09.7]} 36. Rb1 {[%clk
0:01:13]} 36... Qc5 {[%clk 0:02:09.9]} 37. Qd3 {[%clk 0:01:09.2]} 37... Be5
{[%clk 0:02:02.1]} 38. Rd1 {[%clk 0:00:57]} 38... Bd6 {[%clk 0:01:58.9]} 39. Qe3
{[%clk 0:00:52.4]} 39... Qxe3 {[%clk 0:01:58.5]} 0-1

[Event "Late-Titled-Tuesday-Blitz-May-14-2024"]
[Site "Chess.com"]
[Date "2024.05.14"]
[Round "6"]
[White "amylazy"]
[Black "mfschulz"]
[Result "1-0"]
[WhiteElo "2456"]
[BlackElo "2290"]
[TimeControl "180+1"]
[EndTime "15:04:02 PDT"]
[Termination "amylazy won by resignation"]

1. d4 {[%clk 0:01:28.3]} 1... Nf6 {[%clk 0:02:58.1]} 2. Nf3 {[%clk 0:01:27.3]}
2... c5 {[%clk 0:02:57.8]} 3. d5 {[%clk 0:01:27.2]} 3... e6 {[%clk 0:02:57]} 4.
Nc3 {[%clk 0:01:26.9]} 4... exd5 {[%clk 0:02:56.7]} 5. Nxd5 {[%clk 0:01:27.8]}
5... Nxd5 {[%clk 0:02:56.8]} 6. Qxd5 {[%clk 0:01:27.8]} 6... Be7 {[%clk
0:02:57.1]} 7. e4 {[%clk 0:01:27.9]} 7... O-O {[%clk 0:02:56.9]} 8. Bc4 {[%clk
0:01:28.8]} 8... Nc6 {[%clk 0:02:56.3]} 9. O-O {[%clk 0:01:29.2]} 9... d6 {[%clk
0:02:54.7]} 10. Qd1 {[%clk 0:01:28]} 10... a6 {[%clk 0:02:52.3]} 11. a4 {[%clk
0:01:26.8]} 11... Be6 {[%clk 0:02:51.8]} 12. Be2 {[%clk 0:01:24]} 12... d5
{[%clk 0:02:43.5]} 13. exd5 {[%clk 0:01:23.7]} 13... Qxd5 {[%clk 0:02:43.3]} 14.
Be3 {[%clk 0:01:24.6]} 14... Qxd1 {[%clk 0:02:39.8]} 15. Rfxd1 {[%clk
0:01:25.5]} 15... Rfd8 {[%clk 0:02:39.2]} 16. Ng5 {[%clk 0:01:21.1]} 16... Bxg5
{[%clk 0:02:31.1]} 17. Bxg5 {[%clk 0:01:18.8]} 17... f6 {[%clk 0:02:31.3]} 18.
Be3 {[%clk 0:01:19]} 18... Nd4 {[%clk 0:02:27.9]} 19. Bxd4 {[%clk 0:01:19]}
19... cxd4 {[%clk 0:02:27]} 20. Bf3 {[%clk 0:01:19.8]} 20... Rac8 {[%clk
0:02:23.6]} 21. Rd2 {[%clk 0:01:19.8]} 21... b6 {[%clk 0:02:20.2]} 22. Bb7
{[%clk 0:01:19.4]} 22... Rc5 {[%clk 0:02:09.4]} 23. Bxa6 {[%clk 0:01:18.1]}
23... Kf7 {[%clk 0:02:09]} 24. h3 {[%clk 0:01:16.6]} 24... Bc4 {[%clk
0:02:04.5]} 25. Bb7 {[%clk 0:01:10]} 25... Rd7 {[%clk 0:01:58.2]} 26. Be4 {[%clk
0:01:06.8]} 26... g6 {[%clk 0:01:54.8]} 27. Rad1 {[%clk 0:01:05.3]} 27... Ra5
{[%clk 0:01:42.8]} 28. Rxd4 {[%clk 0:01:03.5]} 28... Rxd4 {[%clk 0:01:41.7]} 29.
Rxd4 {[%clk 0:01:04.4]} 29... Rxa4 {[%clk 0:01:41.5]} 30. Rxc4 {[%clk
0:01:00.3]} 30... Rxc4 {[%clk 0:01:40.1]} 31. Bd5+ {[%clk 0:00:59.9]} 31... Ke7
{[%clk 0:01:40.3]} 32. Bxc4 {[%clk 0:01:00.8]} 32... Kd6 {[%clk 0:01:40.5]} 33.
c3 {[%clk 0:01:00.1]} 1-0

[Event "Late-Titled-Tuesday-Blitz-May-14-2024"]
[Site "Chess.com"]
[Date "2024.05.14"]
[Round "6"]
[White "Evan_Attaker"]
[Black "Art10ECHR"]
[Result "0-1"]
[WhiteElo "2644"]
[BlackElo "2504"]
[TimeControl "180+1"]
[EndTime "15:04:03 PDT"]
[Termination "Art10ECHR won by resignation"]

1. Nf3 {[%clk 0:03:00.9]} 1... d5 {[%clk 0:02:57.6]} 2. c4 {[%clk 0:03:01.1]}
2... e6 {[%clk 0:02:56.2]} 3. g3 {[%clk 0:03:00.6]} 3... dxc4 {[%clk 0:02:55.1]}
4. Qa4+ {[%clk 0:02:58.3]} 4... Qd7 {[%clk 0:02:54.3]} 5. Qxc4 {[%clk
0:02:58.3]} 5... c5 {[%clk 0:02:53.8]} 6. Bg2 {[%clk 0:02:58.2]} 6... Nc6 {[%clk
0:02:54.1]} 7. O-O {[%clk 0:02:58.1]} 7... Nf6 {[%clk 0:02:54.1]} 8. d3 {[%clk
0:02:54.5]} 8... Be7 {[%clk 0:02:52.8]} 9. Nc3 {[%clk 0:02:55]} 9... O-O {[%clk
0:02:52.2]} 10. Qa4 {[%clk 0:02:55.6]} 10... a6 {[%clk 0:02:28]} 11. Be3 {[%clk
0:02:45.5]} 11... Nd5 {[%clk 0:02:06.1]} 12. Nxd5 {[%clk 0:02:42.6]} 12... exd5
{[%clk 0:02:04.6]} 13. Qc2 {[%clk 0:02:19.1]} 13... d4 {[%clk 0:01:56.4]} 14.
Bf4 {[%clk 0:02:19.1]} 14... Nb4 {[%clk 0:01:44.2]} 15. Qd2 {[%clk 0:02:09.6]}
15... Nd5 {[%clk 0:01:41.9]} 16. Rac1 {[%clk 0:02:05.9]} 16... b6 {[%clk
0:01:37.8]} 17. Ne5 {[%clk 0:02:02.3]} 17... Qe6 {[%clk 0:01:37.4]} 18. b4
{[%clk 0:01:43.1]} 18... Bb7 {[%clk 0:01:34]} 19. bxc5 {[%clk 0:01:42.4]} 19...
Bxc5 {[%clk 0:01:34.2]} 20. Nc4 {[%clk 0:01:32.7]} 20... Rfe8 {[%clk 0:01:17.8]}
21. Rfe1 {[%clk 0:01:29.6]} 21... Bb4 {[%clk 0:01:10.4]} 22. Bxd5 {[%clk
0:01:20]} 22... Qxd5 {[%clk 0:01:09.6]} 23. e4 {[%clk 0:01:11.9]} 23... dxe3
{[%clk 0:01:09.1]} 24. f3 {[%clk 0:01:02.9]} 24... exd2 {[%clk 0:01:05.5]} 0-1

[Event "Late-Titled-Tuesday-Blitz-May-14-2024"]
[Site "Chess.com"]
[Date "2024.05.14"]
[Round "6"]
[White "Chessdude1987"]
[Black "ACollins05"]
[Result "1-0"]
[WhiteElo "2380"]
[BlackElo "2521"]
[TimeControl "180+1"]
[EndTime "15:04:05 PDT"]
[Termination "Chessdude1987 won by checkmate"]

1. e4 {[%clk 0:03:00.9]} 1... a6 {[%clk 0:02:59.6]} 2. d4 {[%clk 0:03:00.3]}
2... b5 {[%clk 0:02:59.8]} 3. Bd3 {[%clk 0:02:59.8]} 3... Bb7 {[%clk 0:03:00.2]}
4. Nf3 {[%clk 0:03:00.1]} 4... e6 {[%clk 0:03:00.8]} 5. Nc3 {[%clk 0:02:57]}
5... c5 {[%clk 0:03:00]} 6. dxc5 {[%clk 0:02:40]} 6... Bxc5 {[%clk 0:03:00.9]}
7. O-O {[%clk 0:02:39.9]} 7... d6 {[%clk 0:03:00.4]} 8. Ne2 {[%clk 0:02:37.4]}
8... Nf6 {[%clk 0:03:00.1]} 9. Ng3 {[%clk 0:02:37]} 9... Nbd7 {[%clk 0:02:59.9]}
10. a4 {[%clk 0:02:35.9]} 10... b4 {[%clk 0:02:57.6]} 11. a5 {[%clk 0:02:35.8]}
11... O-O {[%clk 0:02:56.8]} 12. h3 {[%clk 0:02:25.9]} 12... Qc7 {[%clk
0:02:56.5]} 13. Bf4 {[%clk 0:02:22.9]} 13... Rfd8 {[%clk 0:02:55.9]} 14. Qe2
{[%clk 0:02:21.7]} 14... Ne5 {[%clk 0:02:54.3]} 15. Nd2 {[%clk 0:02:14.8]} 15...
Nxd3 {[%clk 0:02:49.5]} 16. cxd3 {[%clk 0:02:09.6]} 16... Qe7 {[%clk 0:02:49.2]}
17. Nb3 {[%clk 0:02:05.3]} 17... Ba7 {[%clk 0:02:44.6]} 18. d4 {[%clk
0:02:05.1]} 18... e5 {[%clk 0:02:42.1]} 19. Nf5 {[%clk 0:02:04.4]} 19... Qe6
{[%clk 0:02:41.6]} 20. dxe5 {[%clk 0:01:44.1]} 20... dxe5 {[%clk 0:02:38]} 21.
Bg5 {[%clk 0:01:44]} 21... Bxe4 {[%clk 0:01:38.8]} 22. Bxf6 {[%clk 0:01:40.3]}
22... Bxf5 {[%clk 0:01:15.9]} 23. Bxd8 {[%clk 0:01:39.6]} 23... Qxb3 {[%clk
0:00:54.9]} 24. Qxe5 {[%clk 0:01:18.8]} 24... Bd3 {[%clk 0:00:48.8]} 25. Qe8#
{[%clk 0:01:14.9]} 1-0

[Event "Late-Titled-Tuesday-Blitz-May-14-2024"]
[Site "Chess.com"]
[Date "2024.05.14"]
[Round "6"]
[White "hblanco"]
[Black "TheWiscoIndian"]
[Result "1-0"]
[WhiteElo "2614"]
[BlackElo "2237"]
[TimeControl "180+1"]
[EndTime "15:04:09 PDT"]
[Termination "hblanco won by resignation"]

1. e4 {[%clk 0:03:00]} 1... e6 {[%clk 0:03:00.3]} 2. d4 {[%clk 0:02:59.6]} 2...
d5 {[%clk 0:03:00.7]} 3. Nd2 {[%clk 0:03:00]} 3... dxe4 {[%clk 0:03:00.5]} 4.
Nxe4 {[%clk 0:03:00.9]} 4... Nd7 {[%clk 0:03:00.7]} 5. Nf3 {[%clk 0:03:00.9]}
5... Ngf6 {[%clk 0:03:01.4]} 6. Nxf6+ {[%clk 0:03:01]} 6... Nxf6 {[%clk
0:03:02.3]} 7. Bd3 {[%clk 0:03:01.2]} 7... Be7 {[%clk 0:03:02.2]} 8. Qe2 {[%clk
0:03:01.4]} 8... O-O {[%clk 0:02:58.8]} 9. Bf4 {[%clk 0:03:01.3]} 9... b6 {[%clk
0:02:58.8]} 10. O-O-O {[%clk 0:03:00.7]} 10... Bb7 {[%clk 0:02:58.9]} 11. Kb1
{[%clk 0:03:00.8]} 11... Qd5 {[%clk 0:02:44.7]} 12. c4 {[%clk 0:02:47.9]} 12...
Qh5 {[%clk 0:02:43.1]} 13. Bxc7 {[%clk 0:02:43.3]} 13... Rac8 {[%clk 0:02:40.4]}
14. Be5 {[%clk 0:02:39.3]} 14... Nd7 {[%clk 0:02:38.9]} 15. Bg3 {[%clk
0:02:29.3]} 15... Bxf3 {[%clk 0:02:28.5]} 16. gxf3 {[%clk 0:02:30.2]} 16... Bf6
{[%clk 0:02:28.3]} 17. Rhe1 {[%clk 0:02:13.3]} 17... Bxd4 {[%clk 0:02:17.2]} 18.
Be4 {[%clk 0:01:58]} 18... e5 {[%clk 0:02:08.7]} 19. Bb7 {[%clk 0:01:57.7]}
19... Rc5 {[%clk 0:01:52.7]} 20. f4 {[%clk 0:01:33.8]} 20... Qg6+ {[%clk
0:01:31.7]} 21. Be4 {[%clk 0:01:33]} 21... Qe6 {[%clk 0:01:21.3]} 22. fxe5
{[%clk 0:01:11.9]} 22... Bxe5 {[%clk 0:01:10.4]} 23. f4 {[%clk 0:01:10.6]} 23...
Bf6 {[%clk 0:01:03.2]} 24. Qd3 {[%clk 0:01:10.2]} 24... Nb8 {[%clk 0:00:55]} 25.
Bxh7+ {[%clk 0:01:09.3]} 25... Kh8 {[%clk 0:00:55.6]} 26. Rxe6 {[%clk
0:01:09.8]} 1-0

[Event "Late-Titled-Tuesday-Blitz-May-14-2024"]
[Site "Chess.com"]
[Date "2024.05.14"]
[Round "6"]
[White "XDPS"]
[Black "vpsetter"]
[Result "1-0"]
[WhiteElo "2806"]
[BlackElo "2542"]
[TimeControl "180+1"]
[EndTime "15:04:14 PDT"]
[Termination "XDPS won by resignation"]

1. d4 {[%clk 0:03:00.9]} 1... Nf6 {[%clk 0:02:59.6]} 2. Nf3 {[%clk 0:02:58.2]}
2... d5 {[%clk 0:02:59.5]} 3. Bf4 {[%clk 0:02:58]} 3... c5 {[%clk 0:02:58.1]} 4.
e3 {[%clk 0:02:58.3]} 4... Nc6 {[%clk 0:02:56.8]} 5. Nbd2 {[%clk 0:02:58.7]}
5... Bg4 {[%clk 0:02:56.2]} 6. c3 {[%clk 0:02:58.1]} 6... e6 {[%clk 0:02:55.2]}
7. Qa4 {[%clk 0:02:56.7]} 7... Bxf3 {[%clk 0:02:47]} 8. Nxf3 {[%clk 0:02:56.3]}
8... Nd7 {[%clk 0:02:45.7]} 9. Rd1 {[%clk 0:02:55.2]} 9... Be7 {[%clk
0:02:39.9]} 10. Bd3 {[%clk 0:02:54.5]} 10... a6 {[%clk 0:02:36.1]} 11. Bb1
{[%clk 0:02:54.3]} 11... b5 {[%clk 0:02:33.3]} 12. Qc2 {[%clk 0:02:53.8]} 12...
Rc8 {[%clk 0:02:29.3]} 13. O-O {[%clk 0:02:52.4]} 13... Nf6 {[%clk 0:02:22.3]}
14. Bg5 {[%clk 0:02:49.7]} 14... Ne4 {[%clk 0:02:17.9]} 15. Bf4 {[%clk
0:02:42.6]} 15... g5 {[%clk 0:02:07.7]} 16. Bg3 {[%clk 0:02:33.5]} 16... h5
{[%clk 0:02:06.3]} 17. dxc5 {[%clk 0:02:22.3]} 17... h4 {[%clk 0:01:54.4]} 18.
Bd6 {[%clk 0:02:15.8]} 18... Bxd6 {[%clk 0:01:03.6]} 19. cxd6 {[%clk 0:02:16.7]}
19... g4 {[%clk 0:00:57.4]} 20. Nd4 {[%clk 0:02:07.3]} 20... Nxd4 {[%clk
0:00:25]} 21. Rxd4 {[%clk 0:02:08.2]} 21... h3 {[%clk 0:00:22.7]} 22. Rxe4
{[%clk 0:01:56.4]} 22... dxe4 {[%clk 0:00:20.5]} 23. Rd1 {[%clk 0:01:56.5]}
23... hxg2 {[%clk 0:00:19.8]} 24. d7+ {[%clk 0:01:56.2]} 1-0

[Event "Late-Titled-Tuesday-Blitz-May-14-2024"]
[Site "Chess.com"]
[Date "2024.05.14"]
[Round "6"]
[White "Licancabur"]
[Black "rionelG"]
[Result "1-0"]
[WhiteElo "2496"]
[BlackElo "2310"]
[TimeControl "180+1"]
[EndTime "15:04:15 PDT"]
[Termination "Licancabur won on time"]

1. f4 {[%clk 0:03:00.9]} 1... Nf6 {[%clk 0:02:58.6]} 2. Nf3 {[%clk 0:02:59.7]}
2... d6 {[%clk 0:02:58.7]} 3. g3 {[%clk 0:02:59.8]} 3... g6 {[%clk 0:02:58.2]}
4. Bg2 {[%clk 0:03:00.2]} 4... Bg7 {[%clk 0:02:58.8]} 5. O-O {[%clk 0:03:00.6]}
5... Nbd7 {[%clk 0:02:59.1]} 6. d3 {[%clk 0:03:00.6]} 6... O-O {[%clk 0:02:58]}
7. e4 {[%clk 0:03:00.5]} 7... e5 {[%clk 0:02:57.8]} 8. f5 {[%clk 0:02:59.9]}
8... d5 {[%clk 0:02:56.6]} 9. Nc3 {[%clk 0:02:54.9]} 9... c6 {[%clk 0:02:54.8]}
10. Nh4 {[%clk 0:02:49.5]} 10... dxe4 {[%clk 0:02:50.7]} 11. dxe4 {[%clk
0:02:44.6]} 11... Qb6+ {[%clk 0:02:29.7]} 12. Kh1 {[%clk 0:02:43.7]} 12... Re8
{[%clk 0:01:37.2]} 13. g4 {[%clk 0:02:39.5]} 13... Nc5 {[%clk 0:00:53.7]} 14.
Qf3 {[%clk 0:02:20.6]} 14... Qc7 {[%clk 0:00:42.1]} 15. Be3 {[%clk 0:01:51.2]}
15... Ncd7 {[%clk 0:00:28.8]} 16. fxg6 {[%clk 0:01:37]} 1-0

[Event "Late-Titled-Tuesday-Blitz-May-14-2024"]
[Site "Chess.com"]
[Date "2024.05.14"]
[Round "6"]
[White "doublesik"]
[Black "ReadySkate"]
[Result "0-1"]
[WhiteElo "2548"]
[BlackElo "2740"]
[TimeControl "180+1"]
[EndTime "15:04:23 PDT"]
[Termination "ReadySkate won by resignation"]

1. d4 {[%clk 0:03:00.9]} 1... Nf6 {[%clk 0:02:59.9]} 2. c4 {[%clk 0:02:55.6]}
2... g6 {[%clk 0:03:00.2]} 3. Nc3 {[%clk 0:02:49.7]} 3... d5 {[%clk 0:03:00.5]}
4. cxd5 {[%clk 0:02:49.2]} 4... Nxd5 {[%clk 0:03:01.4]} 5. e4 {[%clk 0:02:49.9]}
5... Nxc3 {[%clk 0:03:01.9]} 6. bxc3 {[%clk 0:02:50.8]} 6... Bg7 {[%clk
0:03:02.5]} 7. Bc4 {[%clk 0:02:51.4]} 7... c5 {[%clk 0:03:03.1]} 8. Ne2 {[%clk
0:02:51.3]} 8... Nc6 {[%clk 0:03:03.7]} 9. Be3 {[%clk 0:02:51.5]} 9... O-O
{[%clk 0:03:04.4]} 10. O-O {[%clk 0:02:50.1]} 10... e6 {[%clk 0:03:04.8]} 11.
Qd2 {[%clk 0:02:46.4]} 11... b6 {[%clk 0:03:05.2]} 12. h4 {[%clk 0:02:44.6]}
12... Bb7 {[%clk 0:03:03.6]} 13. h5 {[%clk 0:02:43.8]} 13... cxd4 {[%clk
0:03:03.3]} 14. cxd4 {[%clk 0:02:43.7]} 14... Rc8 {[%clk 0:03:03.9]} 15. Rac1
{[%clk 0:02:42.5]} 15... Na5 {[%clk 0:03:01.3]} 16. Bd3 {[%clk 0:02:41.7]} 16...
Qd7 {[%clk 0:02:58.6]} 17. h6 {[%clk 0:02:32.8]} 17... Bf6 {[%clk 0:02:56.6]}
18. e5 {[%clk 0:02:32.6]} 18... Be7 {[%clk 0:02:54.3]} 19. Bg5 {[%clk 0:02:26]}
19... Rfd8 {[%clk 0:02:48.1]} 20. Bxe7 {[%clk 0:01:58.1]} 20... Qxe7 {[%clk
0:02:49]} 21. Qf4 {[%clk 0:01:46.2]} 21... Nc6 {[%clk 0:02:43.2]} 22. Rfd1
{[%clk 0:01:43]} 22... Nb4 {[%clk 0:02:41.6]} 23. Rxc8 {[%clk 0:01:30]} 23...
Rxc8 {[%clk 0:02:40]} 24. Ng3 {[%clk 0:01:23.8]} 24... Nxa2 {[%clk 0:02:28.8]}
25. Ra1 {[%clk 0:01:06.5]} 25... Nb4 {[%clk 0:02:23.2]} 26. Be4 {[%clk
0:00:57.1]} 26... Bxe4 {[%clk 0:02:18.8]} 27. Nxe4 {[%clk 0:00:58]} 27... Nd5
{[%clk 0:02:18.4]} 28. Qf3 {[%clk 0:00:41.1]} 28... a5 {[%clk 0:02:15.7]} 29.
Nd6 {[%clk 0:00:41.1]} 29... Rc3 {[%clk 0:02:09.9]} 30. Qe2 {[%clk 0:00:40.7]}
30... Qg5 {[%clk 0:02:04.9]} 31. Ne4 {[%clk 0:00:10.5]} 31... Rc1+ {[%clk
0:02:03.8]} 32. Rxc1 {[%clk 0:00:08.3]} 32... Qxc1+ {[%clk 0:02:04.7]} 33. Kh2
{[%clk 0:00:08.1]} 33... Qxh6+ {[%clk 0:02:05.2]} 34. Kg1 {[%clk 0:00:08.6]}
34... Qc1+ {[%clk 0:02:05.3]} 35. Kh2 {[%clk 0:00:08.8]} 35... Kg7 {[%clk
0:02:05.5]} 36. Qf3 {[%clk 0:00:08.3]} 36... Qf4+ {[%clk 0:02:05.5]} 0-1

[Event "Late-Titled-Tuesday-Blitz-May-14-2024"]
[Site "Chess.com"]
[Date "2024.05.14"]
[Round "6"]
[White "VictorFcQNK"]
[Black "HajiyevKanan"]
[Result "1-0"]
[WhiteElo "2154"]
[BlackElo "2433"]
[TimeControl "180+1"]
[EndTime "15:04:31 PDT"]
[Termination "VictorFcQNK won by checkmate"]

1. d4 {[%clk 0:02:52.9]} 1... d5 {[%clk 0:03:00]} 2. Nf3 {[%clk 0:02:52.5]} 2...
c5 {[%clk 0:03:00.5]} 3. e3 {[%clk 0:02:52.3]} 3... cxd4 {[%clk 0:03:01.4]} 4.
exd4 {[%clk 0:02:52.3]} 4... Nc6 {[%clk 0:03:02.3]} 5. c3 {[%clk 0:02:50.1]}
5... Nf6 {[%clk 0:03:03.2]} 6. Bd3 {[%clk 0:02:50]} 6... Bg4 {[%clk 0:03:03.7]}
7. h3 {[%clk 0:02:46.6]} 7... Bh5 {[%clk 0:03:04]} 8. Bf4 {[%clk 0:02:43.7]}
8... e6 {[%clk 0:03:04.3]} 9. Nbd2 {[%clk 0:02:42]} 9... Bd6 {[%clk 0:03:03.4]}
10. Bxd6 {[%clk 0:02:38]} 10... Qxd6 {[%clk 0:03:04.3]} 11. Qb3 {[%clk
0:02:35.7]} 11... O-O {[%clk 0:03:03.9]} 12. O-O {[%clk 0:02:30]} 12... Rab8
{[%clk 0:03:03.1]} 13. Rfe1 {[%clk 0:02:28]} 13... b5 {[%clk 0:03:01.6]} 14. Ne5
{[%clk 0:02:19.5]} 14... Na5 {[%clk 0:03:01.3]} 15. Qc2 {[%clk 0:02:08.9]} 15...
Nc4 {[%clk 0:03:01.3]} 16. b3 {[%clk 0:01:55.9]} 16... Na3 {[%clk 0:03:01.3]}
17. Qb2 {[%clk 0:01:40.8]} 17... Rfc8 {[%clk 0:02:59.8]} 18. Re3 {[%clk
0:01:21.6]} 18... a5 {[%clk 0:02:57.8]} 19. Rg3 {[%clk 0:01:04.4]} 19... Bg6
{[%clk 0:02:57.5]} 20. Nxg6 {[%clk 0:00:59.4]} 20... hxg6 {[%clk 0:02:58.4]} 21.
Re1 {[%clk 0:00:40.5]} 21... Rd8 {[%clk 0:02:51.4]} 22. Nf3 {[%clk 0:00:39]}
22... b4 {[%clk 0:02:47.9]} 23. Ne5 {[%clk 0:00:29.4]} 23... bxc3 {[%clk
0:02:45.3]} 24. Qxc3 {[%clk 0:00:28.2]} 24... Qb4 {[%clk 0:02:46]} 25. Qc1
{[%clk 0:00:20.1]} 25... Rdc8 {[%clk 0:02:37]} 26. Qe3 {[%clk 0:00:19.9]} 26...
Nc2 {[%clk 0:01:53.6]} 27. Bxc2 {[%clk 0:00:20.1]} 27... Rxc2 {[%clk 0:01:54.2]}
28. Nxf7 {[%clk 0:00:19.6]} 28... Kxf7 {[%clk 0:01:54.4]} 29. Qxe6+ {[%clk
0:00:19.3]} 29... Kf8 {[%clk 0:01:55.1]} 30. Rxg6 {[%clk 0:00:16.7]} 30... Qxd4
{[%clk 0:01:35.3]} 31. Qe7+ {[%clk 0:00:15.8]} 31... Kg8 {[%clk 0:01:34.4]} 32.
Qxg7# {[%clk 0:00:16]} 1-0

[Event "Late-Titled-Tuesday-Blitz-May-14-2024"]
[Site "Chess.com"]
[Date "2024.05.14"]
[Round "6"]
[White "deathadder96"]
[Black "noret"]
[Result "1-0"]
[WhiteElo "2875"]
[BlackElo "2153"]
[TimeControl "180+1"]
[EndTime "15:04:37 PDT"]
[Termination "deathadder96 won on time"]

1. e4 {[%clk 0:03:00.9]} 1... e5 {[%clk 0:02:45.8]} 2. Nf3 {[%clk 0:03:01.1]}
2... Nc6 {[%clk 0:02:45.8]} 3. Bc4 {[%clk 0:03:01.6]} 3... Bc5 {[%clk
0:02:45.3]} 4. d3 {[%clk 0:03:01.7]} 4... Nf6 {[%clk 0:02:40.4]} 5. Nc3 {[%clk
0:03:02.2]} 5... d6 {[%clk 0:02:39.6]} 6. Na4 {[%clk 0:03:02.5]} 6... Bb6 {[%clk
0:02:38.4]} 7. a3 {[%clk 0:03:02.3]} 7... h6 {[%clk 0:02:33.6]} 8. O-O {[%clk
0:02:58]} 8... O-O {[%clk 0:02:33]} 9. h3 {[%clk 0:02:54]} 9... Be6 {[%clk
0:02:31.3]} 10. Bxe6 {[%clk 0:02:54.1]} 10... fxe6 {[%clk 0:02:31.3]} 11. c4
{[%clk 0:02:54]} 11... Qe8 {[%clk 0:02:19.1]} 12. b4 {[%clk 0:02:52]} 12... Bd4
{[%clk 0:02:13.2]} 13. Ra2 {[%clk 0:02:51.7]} 13... a5 {[%clk 0:02:06.1]} 14. b5
{[%clk 0:02:51.5]} 14... Ne7 {[%clk 0:01:52.1]} 15. Nxd4 {[%clk 0:02:49.6]}
15... exd4 {[%clk 0:01:52.1]} 16. f4 {[%clk 0:02:50.2]} 16... Ng6 {[%clk
0:01:43.6]} 17. Bd2 {[%clk 0:02:46.4]} 17... Kh7 {[%clk 0:01:25.6]} 18. Qf3
{[%clk 0:02:45.7]} 18... Qd7 {[%clk 0:00:57.3]} 19. Qf2 {[%clk 0:02:42.9]} 19...
e5 {[%clk 0:00:35.9]} 20. f5 {[%clk 0:02:42.5]} 20... Ne7 {[%clk 0:00:33.1]} 21.
g4 {[%clk 0:02:42.7]} 21... g6 {[%clk 0:00:29.3]} 22. Qh4 {[%clk 0:02:41.6]}
22... Neg8 {[%clk 0:00:23.5]} 23. fxg6+ {[%clk 0:02:33.4]} 23... Kxg6 {[%clk
0:00:23.2]} 24. Rf5 {[%clk 0:02:33.6]} 24... Qg7 {[%clk 0:00:16.4]} 25. Bc1
{[%clk 0:02:33.3]} 25... Kh7 {[%clk 0:00:11.9]} 26. Raf2 {[%clk 0:02:18.8]}
26... Rf7 {[%clk 0:00:06.2]} 27. g5 {[%clk 0:02:18.1]} 27... Raf8 {[%clk
0:00:05.1]} 28. Rg2 {[%clk 0:02:16.6]} 28... Ne8 {[%clk 0:00:02.5]} 29. g6+
{[%clk 0:02:16.2]} 29... Qxg6 {[%clk 0:00:01.6]} 30. Rxg6 {[%clk 0:02:16.6]}
30... Kxg6 {[%clk 0:00:02]} 31. Qh5+ {[%clk 0:02:04.9]} 31... Kg7 {[%clk
0:00:01.8]} 32. Nb2 {[%clk 0:02:05.6]} 32... Nef6 {[%clk 0:00:01.7]} 33. Qh4
{[%clk 0:02:04.7]} 33... Ne7 {[%clk 0:00:01.9]} 34. Bxh6+ {[%clk 0:02:03.6]}
34... Kg6 {[%clk 0:00:00.6]} 35. Rg5+ {[%clk 0:02:02.7]} 35... Kh7 {[%clk
0:00:00.6]} 36. Bxf8+ {[%clk 0:02:03.6]} 1-0